[Event "33rd Croatian Junior League 2024"]
[Site "Novalja"]
[Date "2024.04.06"]
[Round "7.4"]
[White "Mesic, Josip"]
[Black "Mandaric, Fran"]
[Result "1-0"]
[ECO "E16"]
[WhiteElo "1745"]
[BlackElo "1933"]
[Annotator "RC"]
[PlyCount "64"]
[EventDate "2024.03.28"]
[EventType "team-tourn"]
[EventCountry "CRO"]
[SourceTitle "playchess.com"]
[Source "ChessBase"]
[SourceQuality "1"]
[TimeControl "5400+30"]

1. d4 {[%emt 0:00:10]} Nf6 {[%emt 0:00:23]} 2. c4 {[%emt 0:00:10]} e6 {[%emt 0:00:21]} 3. Nf3 {[%emt 0:00:09]} Bb4+ {[%emt 0:01:38]} 4. Bd2 {[%emt 0:00:17]} Qe7 {[%emt 0:01:30]} 5. g3 {[%emt 0:00:14]} O-O {[%emt 0:00:33]} 6. Bg2 {[%emt 0:00:02]} Bxd2+ {[%emt 0:00:54]} 7. Qxd2 {[%emt 0:00:17]} d5 {[%emt 0:09:30]} 8. Nc3 {[%emt 0:01:11]} b6 {[%emt 0:08:56]} 9. O-O {[%emt 0:00:59]} Bb7 {[%emt 0:00:12]} 10. Ne5 {[%emt 0:01:56]} c5 {[%emt 0:03:49]} 11. cxd5 {[%emt 0:02:02]} exd5 {[%emt 0:02:10]} 12. e3 {[%emt 0:01:08]} Ne4 {[%emt 0:09:25]} 13. Nxe4 {[%emt 0:08:10]} dxe4 {[%emt 0:00:02]} 14. Qc3 {[%emt 0:00:41]} f6 {[%emt 0:02:09]} 15. Nc4 {[%emt 0:00:56]} Na6 {[%emt 0:00:58]} 16. a3 {[%emt 0:01:03]} Rac8 {[%emt 0:00:17]} 17. d5 {[%emt 0:20:04]} Bxd5 {[%emt 0:01:28]} 18. Rfd1 {[%emt 0:00:09]} Qe6 {[%emt 0:10:39]} 19. Bf1 {[%emt 0:01:52]} Nc7 {[%emt 0:09:49]} 20. Rd2 {[%emt 0:00:54]} Rfd8 {[%emt 0:04:24]} 21. Rad1 {[%emt 0:02:07]} Kf8 {[%emt 0:00:53]} 22. h4 {[%emt 0:01:10]} b5 {[%emt 0:18:48]} 23. Na5 {[%emt 0:00:31]} Qb6 {[%emt 0:04:13]} 24. b4 {[%emt 0:03:18]} cxb4 {[%emt 0:06:28]} 25. Qxb4+ {[%emt 0:02:15]} Ke8 {[%emt 0:01:02]} 26. Bh3 {[%emt 0:02:13]} Na6 {[%emt 0:00:40]} 27. Qb2 {[%emt 0:00:41]} Rb8 {[%emt 0:01:06]} 28. Rxd5 {[%emt 0:01:26]} Rxd5 {[%emt 0:01:03]} 29. Rxd5 {[%emt 0:00:02]} Qxa5 {[%emt 0:00:18]} 30. Qc2 {[%emt 0:03:17]} Qc7 {[%emt 0:01:17]} 31. Qxe4+ {[%emt 0:00:27]} Qe7 {[%emt 0:00:19]} 32. Qxh7 {[%emt 0:00:51]} Rb7 {[%emt 0:00:44]} 1-0

[Event "33rd Croatian Junior League 2024"]
[Site "Novalja"]
[Date "2024.04.06"]
[Round "7.5"]
[White "Novosel, Lovro"]
[Black "Vucenovic, Damian"]
[Result "1-0"]
[ECO "A95"]
[WhiteElo "2348"]
[BlackElo "2145"]
[Annotator "RC"]
[PlyCount "205"]
[EventDate "2024.03.28"]
[EventType "team-tourn"]
[EventCountry "CRO"]
[SourceTitle "playchess.com"]
[Source "ChessBase"]
[SourceQuality "1"]
[TimeControl "5400+30"]

1. d4 {[%emt 0:00:03]} d5 {[%emt 0:00:18]} 2. c4 {[%emt 0:00:07]} e6 {[%emt 0:00:19]} 3. Nf3 {[%emt 0:00:10]} Nf6 {[%emt 0:00:27]} 4. g3 {[%emt 0:00:07]} Bb4+ {[%emt 0:00:32]} 5. Bd2 {[%emt 0:00:05]} Be7 {[%emt 0:00:06]} 6. Bg2 {[%emt 0:00:05]} O-O {[%emt 0:01:06]} 7. O-O {[%emt 0:00:05]} c6 {[%emt 0:00:28]} 8. Qb3 {[%emt 0:01:07]} Nbd7 {[%emt 0:05:58]} 9. Bb4 {[%emt 1:33:11]} Ne4 {[%emt 0:13:15]} 10. Bxe7 {[%emt 0:00:00]} Qxe7 {[%emt 0:00:29]} 11. Nc3 {[%emt 0:00:00]} f5 {[%emt 0:06:05]} 12. Rad1 {[%emt 0:00:00]} Kh8 {[%emt 0:06:34]} 13. Nd2 {[%emt 0:00:00]} b6 {[%emt 0:06:22]} 14. cxd5 {[%emt 0:00:00]} exd5 {[%emt 0:01:24]} 15. e3 {[%emt 0:00:00]} Ndf6 {[%emt 0:04:02]} 16. Qa4 {[%emt 0:00:00]} Bb7 {[%emt 0:10:31]} 17. Nf3 {[%emt 0:00:00]} Nd7 {[%emt 0:06:43]} 18. Ne2 {[%emt 0:00:00]} g5 {[%emt 0:03:56]} 19. Nc1 {[%emt 0:00:00]} Rf6 {[%emt 0:05:41]} 20. Nd3 {[%emt 0:00:00]} Rh6 {[%emt 0:02:32]} 21. Nfe5 {[%emt 0:00:00]} Nxe5 {[%emt 0:12:08]} 22. Nxe5 {[%emt 0:00:00]} a5 {[%emt 0:01:03]} 23. Rc1 {[%emt 0:00:00]} Rf8 {[%emt 0:03:12]} 24. Rfe1 {[%emt 0:00:00]} Qe8 {[%emt 0:02:49]} 25. Qd1 {[%emt 0:00:00]} g4 {[%emt 0:00:52]} 26. Nd3 {[%emt 0:00:00]} Qh5 {[%emt 0:01:16]} 27. h4 {[%emt 0:00:00]} gxh3 {[%emt 0:00:10]} 28. Qxh5 {[%emt 0:00:00]} Rxh5 {[%emt 0:00:01]} 29. Bf3 {[%emt 0:02:35]} Rh6 {[%emt 0:02:55]} 30. Nf4 {[%emt 0:00:07]} Ng5 {[%emt 0:01:37]} 31. Be2 {[%emt 0:00:14]} c5 {[%emt 0:01:17]} 32. Red1 {[%emt 0:05:27]} c4 {[%emt 0:01:30]} 33. Kh2 {[%emt 0:00:15]} Ne4 {[%emt 0:00:31]} 34. Rf1 {[%emt 0:01:17]} Nd2 {[%emt 0:00:03]} 35. Rh1 {[%emt 0:00:21]} Ne4 {[%emt 0:00:38]} 36. Kg1 {[%emt 0:00:30]} Ng5 {[%emt 0:00:04]} 37. f3 {[%emt 0:00:54]} b5 {[%emt 0:00:24]} 38. Kf2 {[%emt 0:00:19]} b4 {[%emt 0:00:27]} 39. Rh2 {[%emt 0:00:14]} Rc8 {[%emt 0:01:17]} 40. Bd1 {[%emt 0:01:57]} Bc6 {[%emt 0:00:53]} 41. Bc2 {[%emt 0:00:10]} Rf8 {[%emt 0:00:20]} 42. Rch1 {[%emt 0:00:27]} a4 {[%emt 0:00:12]} 43. Nxh3 {[%emt 0:00:59]} Nxh3+ {[%emt 0:00:03]} 44. Rxh3 {[%emt 0:00:04]} Rxh3 {[%emt 0:00:03]} 45. Rxh3 {[%emt 0:00:01]} b3 {[%emt 0:00:10]} 46. axb3 {[%emt 0:00:39]} axb3 {[%emt 0:00:03]} 47. Bb1 {[%emt 0:00:05]} Kg7 {[%emt 0:01:47]} 48. Ke2 {[%emt 0:00:36]} Ra8 {[%emt 0:00:49]} 49. Kd2 {[%emt 0:00:12]} Bd7 {[%emt 0:00:25]} 50. g4 {[%emt 0:01:24]} Rf8 {[%emt 0:00:46]} 51. g5 {[%emt 0:00:22]} Ra8 {[%emt 0:00:38]} 52. Rh6 {[%emt 0:00:37]} Ra1 {[%emt 0:00:03]} 53. Kc1 {[%emt 0:00:42]} Be8 {[%emt 0:00:23]} 54. f4 {[%emt 0:01:16]} Bg6 {[%emt 0:00:30]} 55. Rh1 {[%emt 0:00:07]} Kf7 {[%emt 0:00:35]} 56. Kd2 {[%emt 0:00:07]} Ke7 {[%emt 0:00:27]} 57. Kc3 {[%emt 0:00:17]} Ra7 {[%emt 0:00:26]} 58. Kb4 {[%emt 0:01:04]} Kd6 {[%emt 0:00:11]} 59. Rh6 {[%emt 0:00:10]} Rb7+ {[%emt 0:00:39]} 60. Kc3 {[%emt 0:00:12]} Rf7 {[%emt 0:00:45]} 61. Kb4 {[%emt 0:00:39]} Kc6 {[%emt 0:00:27]} 62. Kc3 {[%emt 0:00:47]} Kb5 {[%emt 0:00:11]} 63. Rh1 {[%emt 0:00:13]} Ra7 {[%emt 0:00:37]} 64. Rh2 {[%emt 0:00:24]} Re7 {[%emt 0:01:08]} 65. Rh3 {[%emt 0:00:07]} Re8 {[%emt 0:00:17]} 66. Rg3 {[%emt 0:00:11]} Rf8 {[%emt 0:00:59]} 67. Rh3 {[%emt 0:00:05]} Kc6 {[%emt 0:00:23]} 68. Rh2 {[%emt 0:00:52]} Ra8 {[%emt 0:00:30]} 69. Rh6 {[%emt 0:00:12]} Kd7 {[%emt 0:00:32]} 70. Kb4 {[%emt 0:00:21]} Ke6 {[%emt 0:00:19]} 71. Rh1 {[%emt 0:00:19]} Rb8+ {[%emt 0:00:15]} 72. Kc3 {[%emt 0:01:23]} Kf7 {[%emt 0:00:10]} 73. Rh6 {[%emt 0:00:16]} Kg7 {[%emt 0:00:13]} 74. Kd2 {[%emt 0:00:32]} Ra8 {[%emt 0:00:20]} 75. Rh1 {[%emt 0:00:14]} Ra1 {[%emt 0:00:30]} 76. Kc3 {[%emt 0:00:17]} Bh5 {[%emt 0:01:03]} 77. Rxh5 {[%emt 0:01:15]} Rxb1 {[%emt 0:00:04]} 78. Rh6 {[%emt 0:00:06]} Rc1+ {[%emt 0:01:12]} 79. Kb4 {[%emt 0:00:01]} Rc2 {[%emt 0:00:21]} 80. Ka3 {[%emt 0:00:03]} Re2 {[%emt 0:01:00]} 81. Re6 {[%emt 0:00:07]} Kf7 {[%emt 0:00:18]} 82. Rf6+ {[%emt 0:00:44]} Ke7 {[%emt 0:00:47]} 83. Rxf5 {[%emt 0:00:05]} Rxe3 {[%emt 0:00:04]} 84. Rxd5 {[%emt 0:00:06]} Rf3 {[%emt 0:00:16]} 85. f5 {[%emt 0:02:50]} Rg3 {[%emt 0:00:48]} 86. f6+ {[%emt 0:00:31]} Kf7 {[%emt 0:00:34]} 87. Kb4 {[%emt 0:00:56]} c3 {[%emt 0:00:24]} 88. Kxb3 {[%emt 0:00:06]} cxb2+ {[%emt 0:00:10]} 89. Kxb2 {[%emt 0:00:00]} Kg6 {[%emt 0:00:37]} 90. Rf5 {[%emt 0:00:16]} Kf7 {[%emt 0:00:23]} 91. Kc2 {[%emt 0:00:24]} Ra3 {[%emt 0:00:29]} 92. Re5 {[%emt 0:00:13]} Kg6 {[%emt 0:00:17]} 93. d5 {[%emt 0:01:12]} h6 {[%emt 0:01:26]} 94. gxh6 {[%emt 0:00:14]} Kxf6 {[%emt 0:00:28]} 95. Rh5 {[%emt 0:00:10]} Ra8 {[%emt 0:00:21]} 96. h7 {[%emt 0:00:12]} Rh8 {[%emt 0:00:11]} 97. Kd3 {[%emt 0:00:05]} Kg6 {[%emt 0:00:34]} 98. Rh1 {[%emt 0:00:07]} Kf5 {[%emt 0:00:29]} 99. Kd4 {[%emt 0:00:07]} Kf6 {[%emt 0:00:03]} 100. d6 {[%emt 0:00:29]} Ke6 {[%emt 0:00:06]} 101. Rh6+ {[%emt 0:00:03]} Kd7 {[%emt 0:00:09]} 102. Kd5 {[%emt 0:00:05]} Rg8 {[%emt 0:00:54]} 103. hxg8=N {[%emt 0:00:12]} 1-0

[Event "33rd Croatian Junior League 2024"]
[Site "Novalja"]
[Date "2024.04.06"]
[Round "7.6"]
[White "Dumancic, Simun"]
[Black "Karlusic, Luka"]
[Result "1/2-1/2"]
[ECO "B40"]
[WhiteElo "2027"]
[BlackElo "2232"]
[Annotator "RC"]
[PlyCount "135"]
[EventDate "2024.03.28"]
[EventType "team-tourn"]
[EventCountry "CRO"]
[SourceTitle "playchess.com"]
[Source "ChessBase"]
[SourceQuality "1"]
[TimeControl "5400+30"]

1. e4 {[%emt 0:00:05]} c5 {[%emt 1:31:00]} 2. Nf3 {[%emt 0:01:41]} e6 {[%emt 0:00:00]} 3. d4 {[%emt 0:00:53]} cxd4 {[%emt 0:00:00]} 4. Nxd4 {[%emt 0:00:04]} Nf6 {[%emt 0:00:00]} 5. Bd3 {[%emt 0:00:22]} Nc6 {[%emt 0:00:00]} 6. Nxc6 {[%emt 0:00:31]} dxc6 {[%emt 0:00:00]} 7. O-O {[%emt 0:00:53]} e5 {[%emt 0:03:00]} 8. Nd2 {[%emt 0:03:18]} Bc5 {[%emt 0:00:00]} 9. Nc4 {[%emt 0:03:09]} Qc7 {[%emt 0:00:00]} 10. Be3 {[%emt 0:03:27]} Bxe3 {[%emt 0:00:00]} 11. Nxe3 {[%emt 0:00:09]} O-O {[%emt 0:00:00]} 12. Qf3 {[%emt 0:02:31]} Rd8 {[%emt 0:00:00]} 13. Rad1 {[%emt 0:08:51]} Be6 {[%emt 0:00:00]} 14. Bc4 {[%emt 0:00:38]} Bxc4 {[%emt 0:00:00]} 15. Nxc4 {[%emt 0:00:10]} b5 {[%emt 0:00:00]} 16. Ne3 {[%emt 0:01:56]} Rd4 {[%emt 0:00:00]} 17. Rxd4 {[%emt 0:08:39]} exd4 {[%emt 0:00:00]} 18. Nf5 {[%emt 0:00:33]} Qe5 {[%emt 0:00:00]} 19. Rd1 {[%emt 0:05:47]} c5 {[%emt 0:00:00]} 20. Qg3 {[%emt 0:00:39]} Qxg3 {[%emt 0:00:00]} 21. Nxg3 {[%emt 0:00:10]} Rd8 {[%emt 0:00:00]} 22. f3 {[%emt 0:03:18]} Kf8 {[%emt 0:00:00]} 23. Kf2 {[%emt 0:04:00]} g6 {[%emt 0:00:00]} 24. Ne2 {[%emt 0:03:38]} Ke7 {[%emt 0:00:00]} 25. b4 {[%emt 0:02:29]} cxb4 {[%emt 0:00:00]} 26. Rxd4 {[%emt 0:06:26]} Rc8 {[%emt 0:00:00]} 27. Rxb4 {[%emt 0:00:13]} Rxc2 {[%emt 0:00:00]} 28. a4 {[%emt 0:00:28]} bxa4 {[%emt 0:00:00]} 29. Rxa4 {[%emt 0:00:13]} Rc7 {[%emt 0:00:00]} 30. Nd4 {[%emt 0:00:08]} Nd7 {[%emt 0:00:00]} 31. Rxa7 {[%emt 0:02:34]} Rxa7 {[%emt 0:00:00]} 32. Nc6+ {[%emt 0:00:05]} Ke6 {[%emt 0:00:00]} 33. Nxa7 {[%emt 0:00:10]} f5 {[%emt 0:00:00]} 34. exf5+ {[%emt 0:01:13]} Kxf5 {[%emt 0:00:00]} 35. Nb5 {[%emt 0:00:19]} g5 {[%emt 0:00:00]} 36. Kg3 {[%emt 0:02:43]} Nf6 {[%emt 0:00:00]} 37. Nd6+ {[%emt 0:01:41]} Kg6 {[%emt 0:00:22]} 38. Ne4 {[%emt 0:02:16]} Nd5 {[%emt 0:00:06]} 39. Kf2 {[%emt 0:33:40]} Nf4 {[%emt 0:00:49]} 40. g3 {[%emt 0:00:00]} Nd5 {[%emt 0:00:16]} 41. Nd2 {[%emt 0:00:00]} Kf5 {[%emt 0:02:43]} 42. Nc4 {[%emt 0:00:00]} Kg6 {[%emt 0:00:21]} 43. Ne3 {[%emt 0:00:00]} Nc3 {[%emt 0:00:36]} 44. f4 {[%emt 0:00:00]} gxf4 {[%emt 0:01:17]} 45. gxf4 {[%emt 0:00:00]} Ne4+ {[%emt 0:01:07]} 46. Kf3 {[%emt 0:00:00]} Nd6 {[%emt 0:02:30]} 47. Kg4 {[%emt 0:00:00]} Ne4 {[%emt 0:00:57]} 48. f5+ {[%emt 0:00:00]} Kg7 {[%emt 0:00:24]} 49. Kf4 {[%emt 0:00:00]} Nf6 {[%emt 0:00:37]} 50. Ng4 {[%emt 0:00:00]} Nd7 {[%emt 0:01:33]} 51. Kg5 {[%emt 0:00:00]} Nc5 {[%emt 0:02:18]} 52. f6+ {[%emt 0:00:00]} Kf7 {[%emt 0:01:00]} 53. Kf5 {[%emt 0:00:00]} Nb7 {[%emt 0:00:46]} 54. Ne5+ {[%emt 0:00:00]} Kf8 {[%emt 0:00:06]} 55. Nc4 {[%emt 0:00:00]} Nc5 {[%emt 0:01:04]} 56. Nd6 {[%emt 0:00:00]} Nb3 {[%emt 0:01:00]} 57. Ne4 {[%emt 0:00:00]} Nd4+ {[%emt 0:00:51]} 58. Ke5 {[%emt 0:00:00]} Nf3+ {[%emt 0:00:57]} 59. Ke6 {[%emt 0:00:00]} Nd4+ {[%emt 0:00:19]} 60. Ke5 {[%emt 0:00:00]} Nf3+ {[%emt 0:00:04]} 61. Kf4 {[%emt 0:00:00]} Nxh2 {[%emt 0:01:08]} 62. Ng5 {[%emt 0:00:00]} h6 {[%emt 0:01:22]} 63. Ne6+ {[%emt 0:00:00]} Kf7 {[%emt 0:01:19]} 64. Kf5 {[%emt 0:00:00]} Nf3 {[%emt 0:01:00]} 65. Nd8+ {[%emt 0:00:20]} Ke8 {[%emt 0:00:39]} 66. Kg6 {[%emt 0:06:08]} Kxd8 {[%emt 0:00:36]} 67. Kxh6 {[%emt 0:07:32]} Ne5 {[%emt 0:00:10]} 68. Kg7 {[%emt 0:00:00]} 1/2-1/2

[Event "33rd Croatian Junior League 2024"]
[Site "Novalja"]
[Date "2024.04.06"]
[Round "7.7"]
[White "Simunkovic, Bartol"]
[Black "Sagovac, Kristijan"]
[Result "0-1"]
[ECO "B33"]
[WhiteElo "1885"]
[BlackElo "2030"]
[Annotator "RC"]
[PlyCount "92"]
[EventDate "2024.03.28"]
[EventType "team-tourn"]
[EventCountry "CRO"]
[SourceTitle "playchess.com"]
[Source "ChessBase"]
[SourceQuality "1"]
[TimeControl "5400+30"]

1. e4 {[%emt 0:00:06]} c5 {[%emt 0:00:14]} 2. Nf3 {[%emt 0:00:06]} Nc6 {[%emt 0:00:46]} 3. d4 {[%emt 0:00:10]} cxd4 {[%emt 0:00:04]} 4. Nxd4 {[%emt 0:00:05]} Nf6 {[%emt 0:00:09]} 5. Nc3 {[%emt 0:00:07]} e5 {[%emt 0:00:05]} 6. Ndb5 {[%emt 0:00:05]} d6 {[%emt 0:00:05]} 7. Bg5 {[%emt 0:00:09]} a6 {[%emt 1:32:37]} 8. Na3 {[%emt 0:00:11]} b5 {[%emt 0:00:30]} 9. Nd5 {[%emt 0:00:07]} Be7 {[%emt 0:00:00]} 10. Bxf6 {[%emt 0:00:06]} Bxf6 {[%emt 0:00:00]} 11. c4 {[%emt 0:00:07]} b4 {[%emt 0:00:00]} 12. Nc2 {[%emt 0:00:04]} O-O {[%emt 0:00:00]} 13. Ndxb4 {[%emt 0:05:00]} Nxb4 {[%emt 0:00:00]} 14. Nxb4 {[%emt 0:00:05]} Qb6 {[%emt 0:00:00]} 15. Qd2 {[%emt 0:01:41]} Rb8 {[%emt 0:00:00]} 16. Nd5 {[%emt 0:08:38]} Qxb2 {[%emt 0:00:00]} 17. Qxb2 {[%emt 0:01:44]} Rxb2 {[%emt 0:00:00]} 18. Bd3 {[%emt 0:00:56]} Bg5 {[%emt 0:00:00]} 19. O-O {[%emt 0:01:16]} g6 {[%emt 0:00:00]} 20. Rfb1 {[%emt 0:02:36]} Rd2 {[%emt 0:00:00]} 21. Rd1 {[%emt 0:01:36]} Rb2 {[%emt 0:00:00]} 22. Rdb1 {[%emt 0:01:30]} Rd2 {[%emt 0:00:00]} 23. Rd1 {[%emt 0:13:35]} Rxd1+ {[%emt 0:07:30]} 24. Rxd1 {[%emt 0:00:31]} f5 {[%emt 0:00:00]} 25. Rb1 {[%emt 0:04:29]} Rd8 {[%emt 0:00:00]} 26. g3 {[%emt 0:04:24]} Kf7 {[%emt 0:00:00]} 27. Rb6 {[%emt 0:04:53]} Bd2 {[%emt 0:00:00]} 28. Kf1 {[%emt 0:09:34]} f4 {[%emt 0:00:00]} 29. Ke2 {[%emt 0:03:54]} Ba5 {[%emt 0:00:00]} 30. Rb3 {[%emt 0:00:17]} fxg3 {[%emt 0:00:00]} 31. hxg3 {[%emt 0:04:03]} Rd7 {[%emt 0:00:00]} 32. Ra3 {[%emt 0:02:37]} Bd8 {[%emt 0:00:00]} 33. Nb4 {[%emt 0:01:29]} Bb6 {[%emt 0:00:00]} 34. Bc2 {[%emt 0:11:20]} Kg7 {[%emt 0:00:00]} 35. Ba4 {[%emt 0:04:35]} Rf7 {[%emt 0:00:00]} 36. f3 {[%emt 0:00:40]} g5 {[%emt 0:00:00]} 37. Rd3 {[%emt 0:03:53]} g4 {[%emt 0:00:00]} 38. fxg4 {[%emt 0:00:42]} Rf2+ {[%emt 0:00:00]} 39. Ke1 {[%emt 0:01:00]} Rg2 {[%emt 0:00:00]} 40. Bd1 {[%emt 0:04:40]} Bc5 {[%emt 0:04:07]} 41. Nd5 {[%emt 0:02:35]} Rxa2 {[%emt 0:00:40]} 42. Ne3 {[%emt 0:00:36]} Ra1 {[%emt 0:02:48]} 43. Kd2 {[%emt 0:01:24]} Ra2+ {[%emt 0:00:53]} 44. Kc3 {[%emt 0:01:27]} Kf6 {[%emt 0:01:11]} 45. Nf5 {[%emt 0:00:30]} a5 {[%emt 0:00:26]} 46. Bb3 {[%emt 0:02:35]} Bb4# {[%emt 0:00:05]} 0-1

[Event "33rd Croatian Junior League 2024"]
[Site "Novalja"]
[Date "2024.04.06"]
[Round "7.8"]
[White "Martic, Filip"]
[Black "Cvetkovic, Erik"]
[Result "1-0"]
[ECO "A43"]
[WhiteElo "1897"]
[BlackElo "1851"]
[Annotator "NA RC"]
[PlyCount "77"]
[EventDate "2024.03.28"]
[EventType "team-tourn"]
[EventCountry "CRO"]
[SourceTitle "playchess.com"]
[Source "ChessBase"]
[SourceQuality "1"]
[TimeControl "5400+30"]

1. d4 {[%emt 0:00:05]} Nf6 {[%emt 0:01:41]} 2. Nf3 {[%emt 0:00:06]} g6 {[%emt 0:00:33]} 3. Nc3 {[%emt 0:00:09]} c5 {[%emt 0:00:13]} 4. d5 {[%emt 0:00:07]} d6 {[%emt 0:00:13]} 5. e4 {[%emt 0:00:43]} Qa5 {[%emt 0:04:38]} 6. Bd2 {[%emt 0:03:51]} a6 {[%emt 0:02:33]} 7. Bd3 {[%emt 0:08:05]} Bg4 {[%emt 0:01:06]} 8. O-O {[%emt 0:00:17]} Bg7 {[%emt 0:00:09]} 9. h3 {[%emt 0:13:09]} Bxf3 {[%emt 0:00:10]} 10. Qxf3 {[%emt 0:00:05]} Nbd7 {[%emt 0:00:14]} 11. a4 {[%emt 0:17:47]} O-O {[%emt 0:02:24]} 12. Qe2 {[%emt 0:07:58]} Qc7 {[%emt 0:11:12]} 13. f4 {[%emt 0:05:13]} Rac8 {[%emt 0:03:17]} 14. Bc4 {[%emt 0:02:02]} Ne8 {[%emt 0:06:10]} 15. Rae1 {[%emt 0:00:58]} Qb8 {[%emt 0:01:14]} 16. g4 {[%emt 0:07:27]} Nc7 $16 {[%emt 0:02:26]} 17. g5 {[%emt 0:07:10]} e6 {[%emt 0:10:27]} 18. dxe6 {[%emt 0:08:46]} Nxe6 {[%emt 0:00:36]} 19. Bxe6 {[%emt 0:00:03]} fxe6 {[%emt 0:00:11]} 20. f5 {[%emt 0:04:13]} exf5 {[%emt 0:05:19]} 21. exf5 {[%emt 0:00:01]} Bd4+ {[%emt 0:01:25]} 22. Kg2 {[%emt 0:00:04]} Rce8 {[%emt 0:03:59]} 23. Qc4+ {[%emt 0:00:28]} Kh8 {[%emt 0:04:35]} 24. f6 {[%emt 0:01:21]} b5 {[%emt 0:07:01]} 25. axb5 {[%emt 0:00:41]} axb5 {[%emt 0:00:08]} 26. Rxe8 {[%emt 0:06:25]} Qxe8 {[%emt 0:02:58]} 27. Qxb5 {[%emt 0:00:05]} Qa8+ {[%emt 0:01:00]} 28. Kg3 {[%emt 0:00:38]} Ne5 {[%emt 0:03:54]} 29. Qb6 {[%emt 0:01:19]} Qe8 {[%emt 0:10:54]} 30. Qxd6 {[%emt 0:01:08]} Nc4 {[%emt 0:00:24]} 31. Qe7 {[%emt 0:00:03]} Be5+ {[%emt 0:05:20]} 32. Bf4 {[%emt 0:00:32]} Qxe7 {[%emt 0:00:47]} 33. fxe7 {[%emt 0:00:05]} Rxf4 {[%emt 0:00:04]} 34. Rxf4 {[%emt 0:00:12]} Nd6 {[%emt 0:00:03]} 35. Nd5 {[%emt 0:00:49]} Kg7 {[%emt 0:00:38]} 36. Nf6 {[%emt 0:01:03]} Kf7 {[%emt 0:01:19]} 37. e8=Q+ {[%emt 0:00:15]} Nxe8 {[%emt 0:00:10]} 38. Nxe8+ {[%emt 0:00:13]} Kxe8 {[%emt 0:00:24]} 39. Kf3 {[%emt 0:00:08]} 1-0

[Event "33rd Croatian Junior League 2024"]
[Site "Novalja"]
[Date "2024.04.06"]
[Round "7.9"]
[White "Troselj, Ivan"]
[Black "Zadro, Matej"]
[Result "1-0"]
[ECO "A00"]
[WhiteElo "2072"]
[BlackElo "1924"]
[Annotator "RC"]
[PlyCount "69"]
[EventDate "2024.03.28"]
[EventType "team-tourn"]
[EventCountry "CRO"]
[SourceTitle "playchess.com"]
[Source "ChessBase"]
[SourceQuality "1"]
[TimeControl "5400+30"]

1. e3 {[%emt 0:00:02]} d5 {[%emt 0:04:48]} 2. b4 {[%emt 0:00:30]} e5 {[%emt 0:04:00]} 3. Bb2 {[%emt 0:01:29]} Bxb4 {[%emt 0:05:19]} 4. Bxe5 {[%emt 0:00:07]} Nf6 {[%emt 0:00:03]} 5. Nf3 {[%emt 0:00:35]} O-O {[%emt 0:00:30]} 6. a3 {[%emt 0:00:39]} Ba5 {[%emt 0:01:27]} 7. Be2 {[%emt 0:02:21]} c5 {[%emt 0:00:58]} 8. O-O {[%emt 0:00:17]} Nc6 {[%emt 0:00:03]} 9. Bb2 {[%emt 0:00:29]} d4 {[%emt 0:13:21]} 10. d3 {[%emt 0:01:41]} Bc7 {[%emt 0:09:47]} 11. Nbd2 {[%emt 0:02:02]} dxe3 {[%emt 0:07:45]} 12. fxe3 {[%emt 0:00:06]} Ng4 {[%emt 0:00:05]} 13. Ne4 {[%emt 0:07:29]} Nxe3 {[%emt 0:00:28]} 14. Qd2 {[%emt 0:00:06]} Nxf1 {[%emt 0:00:15]} 15. Rxf1 {[%emt 0:00:05]} Nd4 {[%emt 0:12:45]} 16. Bd1 {[%emt 0:08:15]} Bf5 {[%emt 0:14:03]} 17. Nxc5 {[%emt 0:14:36]} Nxf3+ {[%emt 0:02:48]} 18. Rxf3 {[%emt 0:00:07]} Bg4 {[%emt 0:00:07]} 19. Qc3 {[%emt 0:02:53]} f6 {[%emt 0:03:39]} 20. Qc4+ {[%emt 0:02:04]} Rf7 {[%emt 0:03:05]} 21. Qxg4 {[%emt 0:00:17]} Qd6 {[%emt 0:00:05]} 22. Ne4 {[%emt 0:01:16]} Qxh2+ {[%emt 0:00:25]} 23. Kf2 {[%emt 0:00:24]} f5 {[%emt 0:02:17]} 24. Nf6+ {[%emt 0:08:09]} Rxf6 {[%emt 0:01:51]} 25. Qc4+ {[%emt 0:00:58]} Rf7 {[%emt 0:00:34]} 26. Rxf5 {[%emt 0:00:18]} Bg3+ {[%emt 0:03:41]} 27. Ke2 {[%emt 0:02:41]} Qxg2+ {[%emt 0:00:32]} 28. Ke3 {[%emt 0:00:05]} Bf2+ {[%emt 0:09:04]} 29. Kd2 {[%emt 0:00:11]} Be3+ {[%emt 0:00:26]} 30. Kxe3 {[%emt 0:01:29]} Re8+ {[%emt 0:00:45]} 31. Kd4 {[%emt 0:04:35]} Qg1+ {[%emt 0:00:31]} 32. Kc3 {[%emt 0:01:11]} Qg6 {[%emt 0:00:28]} 33. Bg4 {[%emt 0:02:19]} Qc6 {[%emt 0:00:33]} 34. Rc5 {[%emt 0:00:20]} b5 {[%emt 0:00:28]} 35. Qxf7+ {[%emt 0:00:16]} 1-0

[Event "33rd Croatian Junior League 2024"]
[Site "Novalja"]
[Date "2024.04.06"]
[Round "7.10"]
[White "Domovic, Ognjen"]
[Black "Damjanovic, Stjepan"]
[Result "1-0"]
[ECO "B01"]
[WhiteElo "1973"]
[BlackElo "2150"]
[Annotator "RC"]
[PlyCount "86"]
[EventDate "2024.03.28"]
[EventType "team-tourn"]
[EventCountry "CRO"]
[SourceTitle "playchess.com"]
[Source "ChessBase"]
[SourceQuality "1"]
[TimeControl "5400+30"]

1. e4 {[%emt 0:00:02]} d5 {[%emt 0:02:26]} 2. exd5 {[%emt 0:00:07]} Qxd5 {[%emt 0:00:04]} 3. Nc3 {[%emt 0:00:05]} Qa5 {[%emt 0:00:04]} 4. d4 {[%emt 0:00:05]} Nf6 {[%emt 0:00:10]} 5. Bd2 {[%emt 0:00:04]} c6 {[%emt 0:01:22]} 6. Bc4 {[%emt 0:00:07]} Bf5 {[%emt 0:01:28]} 7. Nd5 {[%emt 0:00:05]} Qd8 {[%emt 0:00:23]} 8. Nxf6+ {[%emt 0:00:05]} exf6 {[%emt 0:00:39]} 9. Ne2 {[%emt 0:01:54]} Bd6 {[%emt 0:06:36]} 10. c3 {[%emt 0:01:42]} O-O {[%emt 0:09:01]} 11. O-O {[%emt 0:00:22]} b5 {[%emt 0:03:41]} 12. Bb3 {[%emt 0:00:14]} Nd7 {[%emt 0:21:05]} 13. Ng3 {[%emt 0:01:03]} Bd3 {[%emt 0:01:42]} 14. Re1 {[%emt 0:00:24]} Qc7 {[%emt 0:02:45]} 15. Qf3 {[%emt 0:03:52]} Bg6 {[%emt 0:01:02]} 16. h4 {[%emt 0:06:08]} h6 {[%emt 0:14:16]} 17. Qg4 {[%emt 0:02:41]} Bxg3 {[%emt 0:09:17]} 18. Qxg6 {[%emt 0:25:53]} Bh2+ {[%emt 0:11:06]} 19. Kh1 {[%emt 0:00:42]} Bf4 {[%emt 0:06:20]} 20. Re7 {[%emt 0:04:26]} Ne5 {[%emt 0:04:45]} 21. dxe5 {[%emt 0:00:48]} Qxe7 {[%emt 0:00:30]} 22. Bxf4 {[%emt 0:00:06]} fxe5 {[%emt 0:00:35]} 23. Bg3 {[%emt 0:03:00]} c5 {[%emt 0:01:51]} 24. Qe4 {[%emt 0:00:34]} c4 {[%emt 0:00:30]} 25. Bc2 {[%emt 0:00:28]} f5 {[%emt 0:00:00]} 26. Qxe5 {[%emt 0:01:11]} Qxe5 {[%emt 0:01:01]} 27. Bxe5 {[%emt 0:00:14]} Rae8 {[%emt 0:00:20]} 28. f4 {[%emt 0:02:15]} Rd8 {[%emt 0:00:35]} 29. Rd1 {[%emt 0:01:39]} g6 {[%emt 0:00:51]} 30. Kg1 {[%emt 0:00:39]} Kf7 {[%emt 0:00:30]} 31. Rxd8 {[%emt 0:00:38]} Rxd8 {[%emt 0:00:01]} 32. Bd4 {[%emt 0:00:14]} Ke6 {[%emt 0:01:01]} 33. Kf2 {[%emt 0:01:25]} a5 {[%emt 0:00:30]} 34. g4 {[%emt 0:01:16]} Rg8 {[%emt 0:00:29]} 35. h5 {[%emt 0:02:43]} gxh5 {[%emt 0:00:25]} 36. gxf5+ {[%emt 0:01:48]} Kf7 {[%emt 0:00:37]} 37. Be4 {[%emt 0:00:26]} Rd8 {[%emt 0:00:25]} 38. Bf3 {[%emt 0:01:22]} b4 {[%emt 0:00:36]} 39. Bxh5+ {[%emt 0:00:08]} Kg8 {[%emt 0:00:27]} 40. f6 {[%emt 0:00:16]} b3 {[%emt 0:00:30]} 41. axb3 cxb3 {[%emt 0:00:00]} 42. f7+ {[%emt 0:00:33]} Kh7 {[%emt 0:00:10]} 43. f5 {[%emt 0:00:51]} Rxd4 {[%emt 0:00:15]} 1-0